fUST/lending_fUST_20250225
["ID","MTS","AMOUNT","RATE_DAILY","PERIOD"]
[354398150,1740471045596,-499.78951145,0.00066027,120]
[354398151,1740471045607,-500.0,0.00066027,120]
[354398152,1740471045617,-500.0,0.00066027,120]
[354398153,1740471045627,-600.0,0.00066027,120]
[354398154,1740471045638,-500.0,0.00066027,120]
[354398155,1740471045648,-500.0,0.00066027,120]
[354398156,1740471045663,-1000.0,0.00066027,30]
[354398157,1740471045673,-500.0,0.00066027,120]
[354398158,1740471045684,-500.0,0.00066027,120]
[354398160,1740471045694,-500.0,0.00066027,120]
[354398161,1740471045705,-500.94731505,0.00066027,120]
[354398162,1740471045715,-500.0,0.00066027,120]
[354398163,1740471045725,-500.0,0.00066027,120]
[354398164,1740471045735,-500.0,0.00066027,120]
[354398165,1740471045745,-500.0,0.00066027,120]
[354398166,1740471045756,-500.0,0.00066027,120]
[354398167,1740471045766,-500.0,0.00066027,120]
[354398168,1740471045775,-500.0,0.00066027,120]
[354398169,1740471045785,-500.0,0.00066027,120]
[354398171,1740471045795,-500.0,0.00066027,120]
[354398172,1740471045804,-500.0,0.00066027,120]
[354398173,1740471045814,-500.0,0.00066027,120]
[354398174,1740471045825,-500.0,0.00066027,120]
[354398175,1740471045834,-500.0,0.00066027,120]
[354398176,1740471045845,-500.0,0.00066027,120]
[354398177,1740471045857,-503.49569395,0.00066027,120]
[354398178,1740471045867,-503.40472036,0.00066027,120]
[354398179,1740471045879,-320.64168618,0.00066027,120]
[354398180,1740471045889,-500.0,0.00066027,120]
[354398181,1740471045906,-547.65947379,0.00066027,120]
[354398183,1740471045918,-500.0,0.00066027,120]
[354398184,1740471045928,-500.0,0.00066027,120]
[354398185,1740471045938,-500.0,0.00066027,120]
[354398187,1740471045950,-546.06147795,0.00066027,120]
[354398189,1740471045959,-894.27,0.00066027,120]
[354398190,1740471045970,-503.57051369,0.00066027,120]
[354398191,1740471045979,-1169.03,0.00066027,120]
[354398192,1740471045988,-500.0,0.00066027,120]
[354398193,1740471045997,-568.92151049,0.00066027,120]
[354398194,1740471046007,-500.0,0.00066027,120]
[354398195,1740471046017,-500.0,0.00066027,120]
[354398196,1740471046027,-500.0,0.00066027,120]
[354398197,1740471046037,-500.0,0.00066027,120]
[354398198,1740471046047,-500.0,0.00066027,120]
[354398199,1740471046059,-500.0,0.00066027,120]
[354398200,1740471046068,-504.16817758,0.00066027,120]
[354398201,1740471046078,-500.0,0.00066027,120]
[354398202,1740471046087,-505.67,0.00066027,120]
[354398203,1740471046096,-500.0,0.00066027,120]
[354398204,1740471046105,-500.0,0.00066027,120]
[354398205,1740471046115,-500.0,0.00066027,120]
[354398206,1740471046125,-500.0,0.00066027,120]
[354398207,1740471046135,-500.0,0.00066027,120]
[354398208,1740471046145,-502.97800807,0.00066027,120]
[354398209,1740471046155,-500.0,0.00066027,30]
[354398210,1740471046164,-500.0,0.00066027,120]
[354398211,1740471046173,-500.0,0.00066027,120]
[354398212,1740471046183,-500.0,0.00066027,120]
[354398213,1740471046192,-500.0,0.00066027,120]
[354398214,1740471046202,-500.0,0.00066027,120]
[354398215,1740471046211,-500.0,0.00066027,120]
[354398216,1740471046221,-500.0,0.00066027,120]
[354398217,1740471046230,-1981.16,0.00066027,120]
[354398218,1740471046240,-500.0,0.00066027,120]
[354398219,1740471046250,-500.0,0.00066027,120]
[354398220,1740471046260,-514.35,0.00066027,120]
[354398221,1740471046271,-500.0,0.00066027,120]
[354398222,1740471046281,-500.0,0.00066027,120]
[354398223,1740471046292,-502.99126634,0.00066027,120]
[354398224,1740471046302,-500.0,0.00066027,120]
[354398225,1740471046311,-500.0,0.00066027,120]
[354398226,1740471046321,-500.0,0.00066027,120]
[354398227,1740471046330,-504.1567165,0.00066027,120]
[354398228,1740471046340,-529.55212305,0.00066027,120]
[354398230,1740471046350,-500.0,0.00066027,120]
[354398232,1740471046360,-500.0,0.00066027,120]
[354398233,1740471046369,-500.0,0.00066027,120]
[354398234,1740471046378,-1786.02,0.00066027,120]
[354398235,1740471046387,-195.06053086,0.00066027,120]
[354398236,1740471046398,-504.25318967,0.00066027,120]
[354398237,1740471046410,-513.81905637,0.00066027,120]
[354398238,1740471046419,-505.44862535,0.00066027,120]
[354398239,1740471046429,-500.0,0.00066027,120]
[354398240,1740471046439,-500.0,0.00066027,120]
[354398241,1740471046449,-503.46119753,0.00066027,120]
[354398242,1740471046530,-500.0,0.00066027,120]
[354398243,1740471046551,-500.0,0.00066027,120]
[354398244,1740471046562,-500.0,0.00066027,120]
[354398245,1740471046571,-501.86807534,0.00066027,120]
[354398246,1740471046580,-500.0,0.00066027,120]
[354398247,1740471046589,-500.0,0.00066027,120]
[354398248,1740471046599,-515.36174595,0.00066027,120]
[354398249,1740471046610,-500.0,0.00066027,120]
[354398250,1740471046619,-500.0,0.00066027,120]
[354398251,1740471046628,-500.0,0.00066027,120]
[354398252,1740471046639,-3000.0,0.00066027,30]
[354398253,1740471046650,-533.5925284,0.00066027,120]
[354398254,1740471046666,-500.0,0.00066027,120]
[354398255,1740471046677,-250.0,0.00066027,120]
[354398256,1740471046687,-249.69230836,0.00066027,120]
[354398257,1740471046698,-503.62164398,0.00066027,120]
[354398258,1740471046709,-505.08528196,0.00066027,120]
[354398259,1740471046719,-500.0,0.00066027,120]
[354398260,1740471046730,-500.0,0.00066027,120]
[354398261,1740471046740,-500.0,0.00066027,120]
[354398262,1740471046749,-500.0,0.00066027,120]
[354398263,1740471046759,-500.0,0.00066027,120]
[354398264,1740471046769,-500.0,0.00066027,120]
[354398265,1740471046778,-503.7741359,0.00066027,120]
[354398266,1740471046788,-500.0,0.00066027,120]
[354398267,1740471046798,-500.0,0.00066027,120]
[354398268,1740471046809,-1892.04,0.00066027,120]
[354398269,1740471046818,-500.0,0.00066027,120]
[354398270,1740471046828,-500.0,0.00066027,120]
[354398271,1740471046838,-698.01,0.00066027,120]
[354398272,1740471046847,-380.53281549,0.00066027,120]
[354398273,1740471046863,-500.0,0.00066027,120]
[354398274,1740471046873,-2560.99,0.00066027,120]
[354398275,1740471046883,-500.0,0.00066027,120]
[354398276,1740471046893,-500.0,0.00066027,120]
[354398277,1740471046902,-500.0,0.00066027,120]
[354398278,1740471046914,-500.0,0.00066027,120]
[354398279,1740471046924,-502.09813317,0.00066027,120]
[354398280,1740471046936,-500.0,0.00066027,120]
[354398281,1740471046946,-500.0,0.00066027,120]
[354398282,1740471046956,-500.0,0.00066027,120]
[354398283,1740471046966,-500.0,0.00066027,120]
[354398284,1740471046977,-246.075767,0.00066027,120]
[354398285,1740471046987,-500.0,0.00066027,120]
[354398286,1740471046997,-500.0,0.00066027,120]
[354398287,1740471047007,-671.79,0.00066027,120]
[354398288,1740471047018,-500.0,0.00066027,120]
[354398289,1740471047029,-500.0,0.00066027,120]
[354398290,1740471047041,-578.42,0.00066027,120]
[354398291,1740471047051,-500.0,0.00066027,120]
[354398292,1740471047060,-500.0,0.00066027,120]
[354398293,1740471047070,-500.0,0.00066027,120]
[354398294,1740471047080,-2762.36,0.00066027,120]
[354398295,1740471047091,-504.1703656,0.00066027,120]
[354398296,1740471047102,-500.0,0.00066027,120]
[354398297,1740471047112,-500.0,0.00066027,120]
[354398298,1740471047123,-79977.47,0.00066027,7]
[354398299,1740471047133,-503.28745639,0.00066027,120]
[354398300,1740471047143,-500.0,0.00066027,120]
[354398301,1740471047156,-1276.81,0.00066027,3]
[354398302,1740471047166,-500.0,0.00066027,120]
[354398303,1740471047177,-500.0,0.00066027,120]
[354398304,1740471047187,-18901.3,0.00066027,120]
[354398305,1740471047197,-500.0,0.00066027,120]
[354398306,1740471047207,-506.72778019,0.00066027,120]
[354398307,1740471047217,-300.40237927,0.00066027,120]
[354398308,1740471047227,-5802.92,0.00066027,120]
[354398309,1740471047236,-500.0,0.00066027,120]
[354398310,1740471047245,-500.0,0.00066027,120]
[354398311,1740471047255,-500.0,0.00066027,120]
[354398312,1740471047264,-5319.54,0.00066027,120]
[354398313,1740471047274,-500.0,0.00066027,30]
[354398314,1740471047283,-500.0,0.00066027,120]
[354398315,1740471047292,-500.0,0.00066027,120]
[354398316,1740471047302,-502.32061473,0.00066027,120]
[354398317,1740471047312,-482.72395975,0.00066027,120]
[354398318,1740471047322,-503.89754722,0.00066027,120]
[354398319,1740471047332,-500.0,0.00066027,120]
[354398320,1740471047343,-500.0,0.00066027,120]
[354398321,1740471047353,-558.98190769,0.00066027,120]
[354398322,1740471047363,-1288.38,0.00066027,120]
[354398323,1740471047373,-500.0,0.00066027,120]
[354398324,1740471047384,-2021.79,0.00066027,120]
[354398325,1740471047394,-500.0,0.00066027,120]
[354398326,1740471047406,-500.0,0.00066027,120]
[354398327,1740471047416,-501.88445061,0.00066027,120]
[354398328,1740471047426,-500.0,0.00066027,120]
[354398329,1740471047435,-500.0,0.00066027,120]
[354398330,1740471047444,-500.0,0.00066027,120]
[354398331,1740471047453,-500.0,0.00066027,120]
[354398332,1740471047463,-500.0,0.00066027,120]
[354398333,1740471047474,-500.0,0.00066027,120]
[354398334,1740471047484,-500.0,0.00066027,120]
[354398335,1740471047493,-500.0,0.00066027,120]
[354398336,1740471047503,-500.0,0.00066027,120]
[354398337,1740471047513,-500.0,0.00066027,120]
[354398338,1740471047523,-500.0,0.00066027,120]
[354398339,1740471047533,-500.0,0.00066027,120]
[354398340,1740471047543,-503.61015055,0.00066027,120]
[354398341,1740471047552,-500.0,0.00066027,120]
[354398342,1740471047561,-500.0,0.00066027,120]
[354398343,1740471047571,-500.0,0.00066027,120]
[354398344,1740471047580,-508.24275279,0.00066027,120]
[354398345,1740471047589,-500.0,0.00066027,120]
[354398346,1740471047599,-500.0,0.00066027,120]
[354398347,1740471047608,-506.33836688,0.00066027,120]
[354398348,1740471047617,-500.0,0.00066027,120]
[354398349,1740471047627,-500.0,0.00066027,120]
[354398350,1740471047636,-502.89742499,0.00066027,120]
[354398351,1740471047645,-500.0,0.00066027,7]
[354398352,1740471047657,-500.0,0.00066027,120]
[354398353,1740471047667,-500.0,0.00066027,120]
[354398354,1740471047676,-500.0,0.00066027,120]
[354398355,1740471047686,-500.0,0.00066027,120]
[354398356,1740471047695,-500.0,0.00066027,120]
[354398357,1740471047705,-500.0,0.00066027,120]
[354398358,1740471047714,-500.0,0.00066027,120]
[354398359,1740471047723,-233.02848217,0.00066027,120]
[354398360,1740471047733,-500.0,0.00066027,120]
[354398361,1740471047743,-500.0,0.00066027,120]
[354398362,1740471047753,-506.62509877,0.00066027,120]
[354398363,1740471047763,-500.0,0.00066027,120]
[354398364,1740471047772,-500.0,0.00066027,120]
[354398365,1740471047783,-507.83364902,0.00066027,120]
[354398366,1740471047793,-978.37,0.00066027,120]
[354398367,1740471047803,-500.0,0.00066027,120]
[354398368,1740471047813,-500.0,0.00066027,120]
[354398369,1740471047823,-527.1,0.00066027,120]
[354398370,1740471047835,-500.0,0.00066027,120]
[354398371,1740471047845,-500.0,0.00066027,120]
[354398372,1740471047858,-500.0,0.00066027,120]
[354398373,1740471047869,-500.0,0.00066027,120]
[354398374,1740471047880,-504.59382959,0.00066027,120]
[354398375,1740471047890,-500.0,0.00066027,120]
[354398376,1740471047902,-506.55637877,0.00066027,120]
[354398377,1740471047916,-802.89,0.00066027,120]
[354398378,1740471047926,-500.0,0.00066027,120]
[354398379,1740471047936,-626.0700794,0.00066027,120]
[354398380,1740471047947,-500.0,0.00066027,120]
[354398381,1740471047958,-500.0,0.00066027,120]
[354398382,1740471047969,-455.09280904,0.00066027,120]
[354398383,1740471047979,-506.88885654,0.00066027,120]
[354398384,1740471047989,-500.0,0.00066027,120]
[354398385,1740471047999,-504.2998055,0.00066027,120]
[354398386,1740471048010,-500.0,0.00066027,120]
[354398387,1740471048022,-1118.64,0.00066027,120]
[354398388,1740471048032,-500.0,0.00066027,120]
[354398389,1740471048043,-500.0,0.00066027,120]
[354398390,1740471048054,-163.40753945,0.00066027,120]
[354398391,1740471048065,-500.0,0.00066027,120]
[354398392,1740471048076,-500.0,0.00066027,120]
[354398393,1740471048086,-504.85519085,0.00066027,120]
[354398394,1740471048097,-507.8936643,0.00066027,21]
[354398395,1740471048108,-500.0,0.00066027,120]
[354398396,1740471048119,-505.91148077,0.00066027,120]
[354398397,1740471048130,-559.91103563,0.00066027,120]
[354398398,1740471048140,-844.51,0.00066027,120]
[354398399,1740471048151,-4769.7,0.00066027,120]
[354398400,1740471048166,-483.89558706,0.00066027,120]
[354398401,1740471048177,-520.83,0.00066027,120]
[354398402,1740471048188,-500.0,0.00066027,120]
[354398403,1740471048199,-500.0,0.00066027,120]
[354398404,1740471048210,-500.0,0.00066027,120]
[354398405,1740471048221,-507.26871138,0.00066027,120]
[354398406,1740471048231,-238.69181864,0.00066027,120]
[354398407,1740471048242,-500.0,0.00066027,120]
[354398408,1740471048252,-500.02828448,0.00066027,2]
[354398409,1740471048262,-500.0,0.00066027,120]
[354398410,1740471048273,-500.0,0.00066027,120]
[354398411,1740471048284,-500.0,0.00066027,120]
[354398412,1740471048295,-500.0,0.00066027,120]
[354398413,1740471048392,-245.75534604,0.00066027,120]
[354398414,1740471048403,-500.0,0.00066027,120]
[354398415,1740471048415,-500.0,0.00066027,120]
[354398416,1740471048425,-500.0,0.00066027,120]
[354398417,1740471048435,-500.0,0.00066027,120]
[354398418,1740471048445,-2402.43,0.00066027,120]
[354398419,1740471048455,-502.46710506,0.00066027,120]
[354398420,1740471048466,-3964.55,0.00066027,120]
[354398421,1740471048476,-500.0,0.00066027,120]
[354398422,1740471048486,-500.0,0.00066027,120]
[354398423,1740471048497,-500.0,0.00066027,120]
[354398424,1740471048507,-500.0,0.00066027,120]
[354398425,1740471048516,-169.31256592,0.00066201,2]
[354398426,1740471048526,-2274.9,0.000663,30]
[354398427,1740471048536,-500.0,0.00066301,120]
[354398428,1740471048545,-500.0,0.00066301,120]
[354398429,1740471048555,-500.0,0.00066301,120]
[354398430,1740471048564,-500.0,0.00066301,120]
[354398431,1740471048573,-500.0,0.00066301,120]
[354398432,1740471048583,-1055.85,0.00066301,120]
[354398433,1740471048592,-500.0,0.00066301,120]
[354398434,1740471048602,-500.0,0.00066301,120]
[354398435,1740471048612,-500.0,0.00066301,120]
[354398436,1740471048621,-500.06556788,0.00066301,120]
[354398437,1740471048630,-500.0,0.00066301,120]
[354398438,1740471048640,-500.0,0.00066301,120]
[354398439,1740471048650,-500.0,0.00066301,120]
[354398440,1740471048662,-500.0,0.00066301,120]
[354398441,1740471048673,-500.0,0.00066301,120]
[354398442,1740471048683,-500.0,0.00066301,120]
[354398443,1740471048693,-500.0,0.00066301,120]
[354398444,1740471048703,-500.0,0.00066301,120]
[354398445,1740471048714,-1000.0,0.00066301,20]
[354398446,1740471048724,-544.86,0.00066301,120]
[354398447,1740471048734,-677.07,0.00066301,120]
[354398448,1740471048744,-503.02586352,0.00066301,30]
[354398449,1740471048754,-496.0,0.00066301,120]
[354398450,1740471048764,-500.0,0.00066301,120]
[354398451,1740471048774,-500.0,0.00066301,120]
[354398452,1740471048785,-500.0,0.00066301,120]
[354398453,1740471048795,-500.0,0.00066301,120]
[354398454,1740471048804,-1100.03,0.00066301,120]
[354398455,1740471048814,-500.0,0.00066301,120]
[354398456,1740471048824,-521.66,0.00066301,120]
[354398457,1740471048835,-500.0,0.00066301,120]
[354398458,1740471048845,-504.37604494,0.00066301,120]
[354398459,1740471048855,-500.0,0.00066301,120]
[354398460,1740471048865,-500.0,0.00066301,120]
[354398461,1740471048876,-500.0,0.00066301,2]
[354398462,1740471048888,-532.87377539,0.00066301,120]
[354398463,1740471048899,-500.0,0.00066301,120]
[354398464,1740471048911,-600.0,0.00066301,120]
[354398465,1740471048922,-503.62868197,0.00066301,120]
[354398466,1740471048932,-500.0,0.00066301,120]
[354398467,1740471048942,-1000.11327269,0.00066301,30]
[354398468,1740471048952,-500.0,0.00066301,120]
[354398469,1740471048965,-500.0,0.00066301,120]
[354398470,1740471048975,-505.42741197,0.00066301,120]
[354398471,1740471048986,-500.0,0.00066301,120]
[354398472,1740471048995,-500.0,0.00066301,120]
[354398473,1740471049005,-500.0,0.00066301,120]
[354398474,1740471049016,-385.0961604,0.00066301,120]
[354398475,1740471049026,-157.2498082,0.00066301,120]
[354398476,1740471049036,-500.0,0.00066301,120]
[354398477,1740471049046,-504.55210256,0.00066301,120]
[354398478,1740471049055,-504.48922415,0.00066301,120]
[354398479,1740471049065,-500.0,0.00066301,120]
[354398480,1740471049074,-500.0,0.00066301,120]
[354398481,1740471049085,-506.34187165,0.00066301,120]
[354398482,1740471049095,-500.0,0.00066301,120]
[354398483,1740471049105,-508.15886278,0.00066301,120]
[354398484,1740471049115,-504.12294736,0.00066301,120]
[354398485,1740471049126,-500.0,0.00066301,120]
[354398486,1740471049135,-500.0,0.00066301,120]
[354398487,1740471049146,-500.0,0.00066301,120]
[354398488,1740471049156,-894.27,0.00066301,120]
[354398489,1740471049167,-1169.03,0.00066301,120]
[354398490,1740471049176,-500.0,0.00066301,120]
[354398491,1740471049187,-500.0,0.00066301,120]
[354398492,1740471049197,-500.0,0.00066301,120]
[354398493,1740471049208,-500.0,0.00066301,120]
[354398494,1740471049218,-500.0,0.00066301,120]
[354398495,1740471049228,-500.0,0.00066301,120]
[354398496,1740471049238,-500.0,0.00066301,120]
[354398497,1740471049248,-500.0,0.00066301,120]
[354398498,1740471049258,-505.67,0.00066301,120]
[354398499,1740471049267,-500.0,0.00066301,120]
[354398500,1740471049277,-500.0,0.00066301,120]
[354398501,1740471049287,-500.0,0.00066301,120]
[354398502,1740471049296,-500.0,0.00066301,120]
[354398503,1740471049306,-500.0,0.00066301,120]
[354398504,1740471049316,-512.81176448,0.00066301,30]
[354398505,1740471049326,-500.0,0.00066301,120]
[354398506,1740471049337,-500.0,0.00066301,120]
[354398507,1740471049347,-500.0,0.00066301,120]
[354398508,1740471049356,-504.11750272,0.00066301,120]
[354398509,1740471049366,-500.0,0.00066301,120]
[354398510,1740471049377,-500.0,0.00066301,120]
[354398511,1740471049388,-500.0,0.00066301,120]
[354398512,1740471049397,-1981.16,0.00066301,120]
[354398513,1740471049410,-500.0,0.00066301,120]
[354398514,1740471049420,-500.0,0.00066301,120]
[354398515,1740471049430,-514.35,0.00066301,120]
[354398516,1740471049440,-504.52961651,0.00066301,120]
[354398517,1740471049450,-500.0,0.00066301,120]
[354398518,1740471049460,-500.0,0.00066301,120]
[354398519,1740471049470,-500.0,0.00066301,120]
[354398520,1740471049479,-424.8062211,0.00066301,120]
[354398521,1740471049489,-500.0,0.00066301,120]
[354398522,1740471049500,-500.0,0.00066301,120]
[354398523,1740471049510,-500.0,0.00066301,120]
[354398524,1740471049520,-1786.02,0.00066301,120]
[354398525,1740471049530,-515.37172911,0.00066301,120]
[354398526,1740471049539,-500.0,0.00066301,120]
[354398527,1740471049548,-500.0,0.00066301,120]
[354398528,1740471049558,-500.0,0.00066301,120]
[354398529,1740471049568,-500.0,0.00066301,120]
[354398530,1740471049582,-500.0,0.00066301,120]
[354398531,1740471049592,-518.17688282,0.00066301,120]
[354398532,1740471049602,-500.0,0.00066301,120]
[354398533,1740471049611,-500.0,0.00066301,120]
[354398534,1740471049620,-500.0,0.00066301,120]
[354398535,1740471049630,-2170.66725712,0.00066301,30]
[354398536,1740471049640,-500.0,0.00066301,120]
[354398537,1740471049649,-250.0,0.00066301,120]
[354398538,1740471049660,-500.0,0.00066301,120]
[354398539,1740471049670,-500.0,0.00066301,120]
[354398540,1740471049680,-500.0,0.00066301,120]
[354398541,1740471049690,-500.0,0.00066301,120]
[354398542,1740471049700,-510.70878742,0.00066301,120]
[354398543,1740471049712,-500.0,0.00066301,120]
[354398544,1740471049722,-500.0,0.00066301,120]
[354398545,1740471049731,-500.0,0.00066301,120]
[354398546,1740471049742,-1892.04,0.00066301,120]
[354398547,1740471049751,-698.01,0.00066301,120]
[354398548,1740471049761,-500.0,0.00066301,120]
[354398549,1740471049771,-2560.99,0.00066301,120]
[354398550,1740471049781,-500.0,0.00066301,120]
[354398551,1740471049792,-500.0,0.00066301,120]
[354398552,1740471049802,-500.0,0.00066301,120]
[354398553,1740471049811,-502.8753739,0.00066301,120]
[354398554,1740471049821,-500.0,0.00066301,120]
[354398555,1740471049831,-504.06115569,0.00066301,120]
[354398556,1740471049841,-500.0,0.00066301,120]
[354398557,1740471049850,-500.0,0.00066301,120]
[354398558,1740471049864,-500.0,0.00066301,120]
[354398559,1740471049874,-671.79,0.00066301,120]
[354398560,1740471049884,-500.0,0.00066301,120]
[354398561,1740471049894,-500.0,0.00066301,120]
[354398562,1740471049907,-578.42,0.00066301,120]
[354398563,1740471049917,-500.0,0.00066301,120]
[354398564,1740471049928,-500.0,0.00066301,120]
[354398565,1740471049938,-500.0,0.00066301,120]
[354398566,1740471049948,-2762.36,0.00066301,120]
[354398567,1740471049957,-500.0,0.00066301,120]
[354398568,1740471050045,-500.0,0.00066301,120]
[354398569,1740471050055,-79977.47,0.00066301,7]
[354398570,1740471050064,-500.0,0.00066301,120]
[354398571,1740471050074,-1276.81,0.00066301,3]
[354398572,1740471050083,-500.0,0.00066301,120]
[354398573,1740471050093,-500.0,0.00066301,120]
[354398574,1740471050103,-18901.3,0.00066301,120]
[354398575,1740471050113,-503.13017325,0.00066301,120]
[354398576,1740471050123,-5802.92,0.00066301,120]
[354398577,1740471050132,-500.0,0.00066301,120]
[354398578,1740471050143,-510.11747172,0.00066301,120]
[354398579,1740471050153,-500.0,0.00066301,120]
[354398580,1740471050165,-5319.54,0.00066301,120]
[354398581,1740471050175,-500.0,0.00066301,30]
[354398582,1740471050185,-500.0,0.00066301,120]
[354398583,1740471050196,-500.0,0.00066301,120]
[354398584,1740471050206,-505.13906612,0.00066301,120]
[354398585,1740471050216,-316.26211098,0.00066301,120]
[354398586,1740471050225,-1288.38,0.00066301,120]
[354398587,1740471050235,-500.0,0.00066301,120]
[354398588,1740471050244,-2021.79,0.00066301,120]
[354398589,1740471050254,-500.0,0.00066301,120]
[354398590,1740471050264,-372.41462889,0.00066301,120]
[354398591,1740471050273,-500.0,0.00066301,120]
[354398592,1740471050283,-503.13410827,0.00066301,120]
[354398593,1740471050292,-500.0,0.00066301,120]
[354398594,1740471050302,-506.31753928,0.00066301,120]
[354398595,1740471050311,-505.40613968,0.00066301,120]
[354398596,1740471050321,-500.0,0.00066301,120]
[354398597,1740471050331,-500.0,0.00066301,120]
[354398598,1740471050341,-500.0,0.00066301,120]
[354398599,1740471050351,-500.0,0.00066301,120]
[354398600,1740471050360,-500.0,0.00066301,120]
[354398601,1740471050370,-419.8820346,0.00066301,120]
[354398602,1740471050379,-500.0,0.00066301,120]
[354398603,1740471050389,-500.0,0.00066301,120]
[354398604,1740471050398,-500.0,0.00066301,120]
[354398605,1740471050409,-500.0,0.00066301,120]
[354398606,1740471050419,-500.0,0.00066301,120]
[354398607,1740471050429,-204.88755174,0.00066301,120]
[354398608,1740471050440,-500.0,0.00066301,120]
[354398609,1740471050450,-500.0,0.00066301,7]
[354398610,1740471050459,-500.0,0.00066301,120]
[354398611,1740471050469,-500.0,0.00066301,120]
[354398612,1740471050478,-505.22451817,0.00066301,120]
[354398613,1740471050488,-500.0,0.00066301,120]
[354398614,1740471050498,-299.92183403,0.00066301,120]
[354398615,1740471050507,-500.0,0.00066301,120]
[354398616,1740471050517,-249.72441386,0.00066301,120]
[354398617,1740471050527,-500.0,0.00066301,120]
[354398618,1740471050536,-500.0,0.00066301,120]
[354398619,1740471050546,-208.69218583,0.00066301,120]
[354398620,1740471050555,-500.019,0.00066301,120]
[354398621,1740471050565,-978.37,0.00066301,120]
[354398622,1740471050574,-500.0,0.00066301,120]
[354398623,1740471050584,-500.0,0.00066301,120]
[354398624,1740471050594,-527.1,0.00066301,120]
[354398625,1740471050605,-500.0,0.00066301,120]
[354398626,1740471050615,-500.0,0.00066301,120]
[354398627,1740471050625,-500.0,0.00066301,120]
[354398628,1740471050634,-500.0,0.00066301,120]
[354398629,1740471050644,-500.0,0.00066301,120]
[354398630,1740471050653,-802.89,0.00066301,120]
[354398631,1740471050666,-500.0,0.00066301,120]
[354398632,1740471050675,-513.21578963,0.00066301,120]
[354398633,1740471050684,-500.0,0.00066301,120]
[354398634,1740471050694,-500.0,0.00066301,120]
[354398635,1740471050704,-500.0,0.00066301,120]
[354398636,1740471050714,-1118.64,0.00066301,120]
[354398637,1740471050724,-506.09257211,0.00066301,120]
[354398638,1740471050734,-500.0,0.00066301,120]
[354398639,1740471050744,-500.0,0.00066301,120]
[354398640,1740471050755,-500.0,0.00066301,120]
[354398641,1740471050765,-500.0,0.00066301,120]
[354398642,1740471050776,-844.51,0.00066301,120]
[354398643,1740471050786,-4769.7,0.00066301,120]
[354398644,1740471050796,-520.83,0.00066301,120]
[354398645,1740471050806,-500.0,0.00066301,120]
[354398646,1740471050816,-504.92343489,0.00066301,120]
[354398647,1740471050827,-500.0,0.00066301,120]
[354398648,1740471050837,-500.0,0.00066301,120]
[354398649,1740471050847,-503.1240451,0.00066301,120]
[354398650,1740471050856,-500.0,0.00066301,120]
[354398651,1740471050866,-505.04333626,0.00066301,120]
[354398652,1740471050876,-522.1581037,0.00066301,120]
[354398653,1740471050888,-508.20608708,0.00066301,120]
[354398654,1740471050897,-500.0,0.00066301,120]
[354398655,1740471050910,-500.0,0.00066301,120]
[354398656,1740471050920,-195.60940245,0.00066301,120]